bitfinex-derivatives/quotes_BNBF0:USTF0_20250128
["timestamp","ask_amount","ask_price","bid_price","bid_amount"]
[1738028879392,0.24448089,678.38,676.98,0.2954297]
[1738028880696,1.10126886,678.39,676.98,0.2954297]
[1738028882695,0.24446099,678.38,676.98,0.2954297]
[1738028883796,0.24446099,678.45,676.98,0.2954297]
[1738028883994,0.24446099,678.44,676.98,0.2954297]
[1738028884199,0.24446099,678.45,676.98,0.2954297]
[1738028884499,0.24446099,678.44,676.98,0.2954297]
[1738028884699,0.24446099,678.45,676.98,0.2954297]
[1738028884898,0.24446099,678.44,676.98,0.2954297]
[1738028885095,0.24446099,678.43,676.99,0.27119001]
[1738028885294,1.10126886,678.46,677.0,0.29542097]
[1738028885295,0.24446099,678.45,677.0,0.29542097]
[1738028885594,1.10126886,678.46,677.01,0.27119001]
[1738028885595,0.24440469,678.44,677.01,0.27119001]
[1738028885795,0.24440469,678.43,677.02,0.29541224]
[1738028885996,0.24440469,678.45,677.03,0.27119001]
[1738028886196,0.24440469,678.44,677.03,0.27119001]
[1738028886799,0.24440469,678.44,677.04,0.29540352]
[1738028887003,0.24440469,678.44,677.05,0.27119001]
[1738028887204,0.24440469,678.44,677.06,0.29539479]
[1738028887503,0.24440469,678.44,677.07,0.27119001]
[1738028887702,0.24440469,678.44,677.08,0.29538606]
[1738028888004,0.24440469,678.44,677.09,0.27119001]
[1738028888203,0.24440469,678.44,677.1,0.29537734]
[1738028888402,0.24440469,678.44,677.11,0.27119001]
[1738028888597,0.24440469,678.44,677.12,0.29536862]
[1738028888796,0.24440469,678.44,677.13,0.27119001]
[1738028888996,1.10126886,678.45,677.14,0.29535989]
[1738028889202,1.10126886,678.44,677.14,0.29535989]
[1738028889405,0.24438631,678.43,677.15,0.27116367]
[1738028889605,0.24438631,678.43,677.16,0.29535117]
[1738028889803,0.24438631,678.43,677.17,0.27116367]
[1738028890000,0.24438631,678.43,677.18,0.29534244]
[1738028890902,1.10126886,678.44,677.18,0.29534244]
[1738028891204,0.24438337,678.43,677.18,0.29534244]
[1738028892706,0.24438337,678.42,677.18,0.29534244]
[1738028893007,0.24438337,678.41,677.18,0.29534244]
[1738028893203,0.24438337,678.4,677.18,0.29534244]
[1738028893405,0.24438337,678.45,677.18,0.29534244]
[1738028893606,0.24438337,678.44,677.18,0.29534244]
[1738028893805,0.24438337,678.43,677.18,0.29534244]
[1738028894005,0.24438337,678.42,677.18,0.29534244]
[1738028894205,1.10126886,678.46,677.18,0.29534244]
[1738028894206,0.24438337,678.45,677.18,0.29534244]
[1738028894506,0.24443023,678.44,677.18,0.29534244]
[1738028894707,0.24443023,678.43,677.18,0.29534244]
[1738028894911,0.24443023,678.42,677.18,0.29534244]
[1738028895105,0.24443023,678.58,677.18,0.29534244]
[1738028895305,0.24443023,678.57,677.18,0.29534244]
[1738028895506,0.24443023,678.58,677.18,0.29534244]
[1738028895708,0.24443023,678.57,677.18,0.29534244]
[1738028895909,0.24443023,678.58,677.18,0.29534244]
[1738028896110,0.24443023,678.57,677.18,0.29534244]
[1738028896312,0.24443023,678.58,677.18,0.29534244]
[1738028896511,0.24443023,678.57,677.18,0.29534244]
[1738028896811,0.24443023,678.56,677.18,0.29534244]
[1738028897009,1.10126886,678.61,677.18,0.29534244]
[1738028897010,0.24443023,678.55,677.18,0.29534244]
[1738028897205,0.24443023,678.58,677.18,0.29534244]
[1738028897406,0.24443023,678.57,677.18,0.29534244]
[1738028897605,0.24443023,678.56,677.18,0.29534244]
[1738028897810,0.24443023,678.58,677.18,0.29534244]
[1738028898107,0.24449115,678.57,677.18,0.29534244]
[1738028898410,0.24449115,678.56,677.18,0.29534244]
[1738028898610,0.24449115,678.58,677.18,0.29534244]
[1738028898807,0.24449115,678.57,677.18,0.29534244]
[1738028899007,0.24449115,678.56,677.19,0.27113296]
[1738028899209,0.24449115,678.58,677.19,0.27113296]
[1738028899410,0.24449115,678.57,677.19,0.27113296]
[1738028899610,0.24449115,678.56,677.19,0.27113296]
[1738028899812,0.24450584,678.55,677.2,0.27112559]
[1738028900110,0.24450584,678.54,677.21,0.27112559]
[1738028900311,0.24450584,678.58,677.19,0.27112559]
[1738028900512,0.24450584,678.57,677.2,0.27112559]
[1738028900705,0.24449229,678.56,677.21,0.56645675]
[1738028900909,0.24449229,678.58,677.22,0.27112739]
[1738028901107,0.24449229,678.57,677.23,0.29532064]
[1738028901312,0.24449229,678.58,677.23,0.29532064]
[1738028901511,0.24449229,678.57,677.23,0.29532064]
[1738028901713,0.24449229,678.58,677.24,0.27112057]
[1738028901913,0.24449229,678.57,677.25,0.29531192]
[1738028902112,1.10126886,678.56,677.25,0.29531192]
[1738028902313,0.24449229,678.55,677.25,0.29531192]
[1738028903412,0.24449442,678.54,677.25,0.29531192]
[1738028903616,0.24449442,678.53,677.25,0.29531192]
[1738028903812,0.24449442,678.55,677.25,0.29531192]
[1738028904010,0.24449442,678.54,677.25,0.29531192]
[1738028904216,0.24449442,678.55,677.26,0.27111794]
[1738028904419,0.24449442,678.54,677.27,0.2953032]
[1738028904615,0.24449442,678.53,677.27,0.2953032]
[1738028904814,0.24449442,678.52,677.27,0.2953032]
[1738028905018,1.10126886,678.56,677.27,0.2953032]
[1738028905318,0.24452029,678.55,677.27,0.2953032]
[1738028905814,1.10126886,678.53,677.27,0.2953032]
[1738028906020,0.24452029,678.52,677.27,0.2953032]
[1738028907213,0.24452029,678.52,677.28,0.27111599]
[1738028907419,0.24452029,678.52,677.29,0.29529448]
[1738028908017,0.24452029,678.52,677.3,0.27111636]
[1738028908217,0.24452029,678.52,677.31,0.29528576]
[1738028908817,0.24452029,678.52,677.32,0.27111064]
[1738028909019,0.24452029,678.52,677.33,0.29527704]
[1738028910020,0.24452029,678.52,677.34,0.27111099]
[1738028910322,0.24452029,678.52,677.35,0.29526832]
[1738028911722,1.10126886,678.46,677.35,0.29526832]
[1738028911923,0.24452029,678.45,677.35,0.29526832]
[1738028912921,1.10126886,678.46,677.35,0.29526832]
[1738028915319,5.26416365,686.38,677.35,0.29526832]
[1738028915320,1.10126886,678.55,677.35,0.29526832]
[1738028915524,0.24437638,678.54,677.35,0.29526832]
[1738028915924,1.10126886,678.55,677.35,0.29526832]
[1738028916125,0.24437829,678.54,677.35,0.29526832]
[1738028916527,1.10126886,678.55,677.35,0.29526832]
[1738028918228,1.10126886,678.57,677.35,0.29526832]
[1738028921833,1.10126886,678.63,677.35,0.29526832]
[1738028923033,1.10126886,678.63,677.36,0.27104435]
[1738028923334,1.10126886,678.63,677.35,0.29526832]
[1738028925935,1.10126886,678.75,677.35,0.29526832]
[1738028927135,0.24439075,678.58,677.36,0.27104852]
[1738028927332,0.24439075,678.58,677.37,0.2952596]
[1738028927532,0.24439075,678.58,677.38,0.27104852]
[1738028927730,1.10126886,678.75,677.39,0.29525088]
[1738028929031,1.10126886,678.77,677.39,0.29525088]
[1738028931937,1.10126886,678.78,677.39,0.29525088]
[1738028935532,1.10126886,678.88,677.39,0.29525088]
[1738028938936,1.10126886,679.12,677.39,0.29525088]
[1738028939136,0.53885508,679.11,677.39,0.29525088]
[1738028939336,0.24435199,679.1,677.39,0.29525088]
[1738028939537,0.29451177,679.09,677.39,0.29525088]
[1738028939737,0.24435199,679.08,677.39,0.29525088]
[1738028940039,0.29452044,679.07,677.39,0.29525088]
[1738028940239,0.24435199,679.06,677.39,0.29525088]
[1738028941239,1.34562085,679.06,677.39,0.29525088]
[1738028941439,0.53888111,679.05,677.39,0.29525088]
[1738028941734,0.53888544,679.04,677.39,0.29525088]
[1738028941939,0.53888978,679.03,677.39,0.29525088]
[1738028942139,0.53889412,679.02,677.39,0.29525088]
[1738028942333,0.53889846,679.01,677.39,0.29525088]
[1738028942538,0.24435199,679.0,677.39,0.29525088]
[1738028942736,0.5389028,679.0,677.39,0.29525088]
[1738028942934,0.24435199,678.99,677.39,0.29525088]
[1738028945338,0.29455081,679.0,677.39,0.29525088]
[1738028945541,0.24424402,678.99,677.39,0.29525088]
[1738028946446,0.24424402,678.99,677.4,0.27100605]
[1738028946740,0.24424402,678.99,677.42,0.29523781]
[1738028947746,0.24424402,678.99,677.43,0.27100738]
[1738028947947,0.24424402,678.99,677.45,0.29522473]
[1738028948246,0.24424402,678.99,677.46,0.27100738]
[1738028948847,0.24424402,678.99,677.47,0.29521602]
[1738028949046,0.24424402,678.99,677.48,0.27100738]
[1738028949248,1.10126886,678.84,677.49,0.2952073]
[1738028949443,0.24424402,678.83,677.5,0.27100738]
[1738028949649,0.24424402,678.83,677.51,0.29519859]
[1738028950142,1.10126886,678.84,677.51,0.29519859]
[1738028950349,0.24430836,678.83,677.51,0.29519859]
[1738028951845,1.10126886,678.84,677.51,0.29519859]
[1738028952043,0.24430747,678.83,677.51,0.29519859]
[1738028952345,1.10126886,678.74,677.51,0.29519859]
[1738028952647,0.24430747,678.73,677.51,0.29519859]
[1738028953847,0.24429849,678.72,677.52,0.2710011]
[1738028954045,0.24429849,678.72,677.53,0.29518988]
[1738028954347,0.24429849,678.71,677.53,0.29518988]
[1738028954550,0.24429849,678.7,677.53,0.29518988]
[1738028954843,0.24429849,678.69,677.54,0.27100121]
[1738028955048,0.24429849,678.73,677.55,0.29518116]
[1738028955349,0.24429849,678.72,677.55,0.29518116]
[1738028955547,1.10126886,678.74,677.55,0.29518116]
[1738028955741,0.24429853,678.73,677.55,0.29518116]
[1738028956344,1.10126886,678.69,677.55,0.29518116]
[1738028956547,0.24429853,678.68,677.55,0.29518116]
[1738028957349,1.10126886,678.69,677.55,0.29518116]
[1738028958750,1.10126886,678.63,677.55,0.29518116]
[1738028962652,1.10126886,678.9,677.55,0.29518116]
[1738028965449,1.10126886,678.92,677.55,0.29518116]
[1738028966954,1.10126886,678.92,677.56,0.27095287]
[1738028967354,0.24420812,678.91,677.56,0.27095287]
[1738028967756,0.24420812,678.91,677.58,0.29516809]
[1738028967958,0.24420812,678.91,677.59,0.27095287]
[1738028968155,1.10126886,678.92,677.58,0.29516809]
[1738028968351,0.24421182,678.91,677.59,0.27093544]
[1738028968658,1.10126886,678.92,677.59,0.27093544]
[1738028968857,1.10126886,678.92,677.61,0.29515503]
[1738028969056,1.10126886,678.92,677.62,0.27093544]
[1738028969258,1.10126886,678.91,677.62,0.27093544]
[1738028969458,1.10126886,678.91,677.64,0.29514196]
[1738028970753,1.10126886,678.91,677.65,0.27092868]
[1738028970960,1.10126886,678.91,677.66,0.29513325]
[1738028971158,1.10126886,678.91,677.67,0.27092868]
[1738028971359,1.10126886,678.91,677.69,0.29512018]
[1738028971557,1.10126886,678.91,677.7,0.27092868]
[1738028971758,1.10126886,678.91,677.71,0.29511147]
[1738028972253,1.10126886,678.91,677.72,0.27088644]
[1738028972458,1.10126886,678.91,677.73,0.29510276]
[1738028973559,1.10126886,678.96,677.73,0.29510276]
[1738028975158,1.10126886,678.96,677.74,0.27089244]
[1738028976056,1.10126886,678.96,677.73,0.29510276]
[1738028976856,0.29455081,679.0,677.73,0.29510276]
[1738028977062,0.29455081,679.0,677.74,0.27087521]
[1738028979065,0.29455081,679.0,677.73,0.29510276]
[1738028979261,0.29455081,679.0,677.74,0.27087481]
[1738028979662,0.29455081,679.0,677.75,0.29509406]
[1738028979862,0.29455081,679.0,677.76,0.27087481]
[1738028980064,0.29455081,679.0,677.77,0.29508535]
[1738028980362,0.29455081,679.0,677.78,0.27087481]
[1738028980562,0.24431243,678.99,677.78,0.27087481]
[1738028980962,0.29455081,679.0,677.79,0.27088364]
[1738028981161,0.24431408,678.99,677.8,0.29507229]
[1738028981363,0.24431408,678.99,677.8,0.56595593]
[1738028981663,0.24431408,678.99,677.81,0.27088364]
[1738028982364,0.24431408,678.99,677.82,0.29506358]
[1738028982565,0.29455081,679.0,677.83,0.27088364]
[1738028982864,0.29455081,679.0,677.84,0.29505488]
[1738028983066,0.29455081,679.0,677.85,0.2708764]
[1738028983266,0.24431427,678.99,677.86,0.29504617]
[1738028983564,0.29455081,679.0,677.86,0.29504617]
[1738028985862,0.24432007,678.99,677.87,0.27087179]
[1738028986067,0.24432007,678.99,677.88,0.29503746]
[1738028986662,0.24432007,678.99,677.89,0.27087218]
[1738028986861,0.24432007,678.99,677.9,0.29502876]
[1738028987164,0.29455081,679.0,677.9,0.29502876]
[1738028988267,1.10126886,679.21,677.9,0.29502876]
[1738028988467,0.24433979,679.2,677.9,0.29502876]
[1738028989764,0.24433979,679.2,677.91,0.27086166]
[1738028989963,0.24433979,679.2,677.92,0.29502006]
[1738028993969,1.10126886,679.21,677.92,0.29502006]
[1738028994169,0.24435162,679.2,677.92,0.29502006]
[1738028996276,1.10126886,679.15,677.92,0.29502006]
[1738028996576,0.24435162,679.14,677.92,0.29502006]
[1738028997372,0.24435162,679.14,677.93,0.27086069]
[1738028997572,0.24435162,679.14,677.94,0.29501135]
[1738028997970,0.24435162,679.14,677.95,0.2708586]
[1738028998169,0.24435162,679.14,677.96,0.29500265]
[1738028999776,1.10126886,679.1,677.96,0.29500265]
[1738028999977,0.24435162,679.09,677.96,0.29500265]
[1738029000176,0.24435162,679.09,677.97,0.2708633]
[1738029003180,1.10126886,678.98,677.97,0.2708633]
[1738029003979,0.24434892,678.97,677.97,0.2708633]
[1738029004181,1.10126886,678.98,677.97,0.2708633]
[1738029005887,1.10126886,678.98,677.96,0.29500265]
[1738029006185,1.10126886,678.98,677.97,0.27083064]
[1738029006584,1.10126886,679.0,677.97,1.37555321]
[1738029006781,1.10126886,679.0,677.97,1.10472257]
[1738029007184,1.10126886,679.0,677.98,0.27082627]
[1738029007382,1.10126886,679.0,677.97,1.10472257]
[1738029008180,1.10126886,679.0,677.98,0.27082603]
[1738029008885,1.10126886,679.0,677.97,1.10472257]
[1738029010285,1.10126886,679.0,677.98,0.29499395]
[1738029010481,1.10126886,679.1,677.98,0.29499395]
[1738029013583,1.10126886,679.51,677.98,0.29499395]
[1738029016086,0.24439244,679.5,677.98,0.29499395]
[1738029016686,0.24439244,679.55,677.98,0.29499395]
[1738029016887,0.29431674,679.54,677.98,0.29499395]
[1738029017188,0.24439244,679.53,677.98,0.29499395]
[1738029018288,0.24439244,679.53,677.99,0.27079742]
[1738029018488,0.29431674,679.54,678.0,0.29498525]
[1738029018785,0.24439215,679.53,678.01,0.27079839]
[1738029019090,0.24439215,679.53,678.02,0.29497654]
[1738029019690,1.10126886,679.38,678.02,0.29497654]
[1738029019981,0.24439215,679.37,678.02,0.29497654]
[1738029021587,0.24439215,679.37,678.03,0.27078317]
[1738029021785,0.24439215,679.37,678.04,0.29496784]
[1738029022986,1.10126886,679.34,678.04,0.29496784]
[1738029023186,0.24439215,679.33,678.04,0.29496784]
[1738029024089,1.10126886,679.34,678.04,0.29496784]
[1738029024284,0.24429933,679.33,678.04,0.29496784]
[1738029024887,1.10126886,679.34,678.04,0.29496784]
[1738029025087,0.24430912,679.33,678.04,0.29496784]
[1738029026587,1.10126886,679.34,678.04,0.29496784]
[1738029027890,1.10126886,679.41,678.04,0.29496784]
[1738029028190,0.24432491,679.4,678.04,0.29496784]
[1738029028989,1.10126886,679.41,678.04,0.29496784]
[1738029029185,0.24431529,679.4,678.04,0.29496784]
[1738029029690,1.10126886,679.41,678.04,0.29496784]
[1738029029894,0.24431371,679.4,678.04,0.29496784]
[1738029030493,1.10126886,679.38,678.04,0.29496784]
[1738029030693,0.24431371,679.37,678.04,0.29496784]
[1738029033899,1.10126886,679.36,678.04,0.29496784]
[1738029034090,0.24431371,679.35,678.04,0.29496784]
[1738029034592,1.10126886,679.36,678.04,0.29496784]
[1738029035296,1.10126886,679.36,678.05,0.27076187]
[1738029035695,0.24428109,679.35,678.05,0.27076187]
[1738029036294,0.24428109,679.35,678.06,0.29495914]
[1738029036495,0.24428109,679.35,678.07,0.27076187]
[1738029036689,1.10126886,679.36,678.07,0.27076187]
[1738029037198,1.10126886,679.37,678.07,0.27076187]
[1738029037689,1.10126886,679.37,678.09,0.29494609]
[1738029037896,1.10126886,679.37,678.1,0.27076187]
[1738029038291,1.10126886,679.37,678.12,0.29493305]
[1738029038497,1.10126886,679.37,678.13,0.27076187]
[1738029038698,1.10126886,679.37,678.15,0.29492]
[1738029040099,1.10126886,679.42,678.15,0.29492]
[1738029040700,1.10126886,679.42,678.16,0.27071718]
[1738029040896,1.10126886,679.42,678.17,0.27071293]
[1738029041196,1.10126886,679.42,678.18,0.56561988]
[1738029041400,1.10126886,679.42,678.19,0.27071293]
[1738029041701,1.10126886,679.42,678.18,0.29490695]
[1738029041895,1.10126886,679.42,678.2,0.29489826]
[1738029042795,1.10126886,679.42,678.21,0.27069262]
[1738029043201,0.29431674,679.54,678.21,0.27069262]
[1738029043400,0.29431674,679.54,678.2,0.29489826]
[1738029044097,0.24429515,679.53,678.21,0.27069795]
[1738029044500,0.29431674,679.54,678.21,0.27069795]
[1738029044697,0.29431674,679.54,678.22,0.29488956]
[1738029044898,0.24430453,679.53,678.23,0.27069063]
[1738029045402,0.24430453,679.53,678.24,0.29488086]
[1738029045602,0.24430453,679.53,678.25,0.27069063]
[1738029045999,0.24430453,679.53,678.26,0.29487217]
[1738029046201,0.24430453,679.53,678.27,0.27069063]
[1738029046503,1.10126886,679.57,678.26,0.29487217]
[1738029046697,0.24431366,679.56,678.27,0.27067618]
[1738029047403,0.24431366,679.56,678.03,1.53772508]
[1738029047404,0.24432436,679.55,678.29,0.29485913]
[1738029047601,0.24432436,679.59,678.3,0.27066753]
[1738029047801,0.24432436,679.58,678.32,0.29484609]
[1738029048102,0.24432436,679.57,678.33,0.27066753]
[1738029048303,0.24432436,679.59,678.33,0.27066753]
[1738029048501,0.24432436,679.58,678.33,0.27066753]
[1738029048701,0.24432436,679.59,678.33,0.27066753]
[1738029048902,0.24432436,679.58,678.33,0.27066753]
[1738029049099,0.24432436,679.59,678.34,0.29483739]
[1738029049298,0.24432436,679.58,678.35,0.27066753]
[1738029049499,0.24432436,679.59,678.36,0.2948287]
[1738029049806,0.24432436,679.59,678.37,0.27066753]
[1738029050409,0.24432436,679.62,678.37,0.27066753]
[1738029050706,0.24432436,679.61,678.37,0.27066753]
[1738029050907,0.24432436,679.62,678.37,0.27066753]
[1738029051106,0.24432436,679.61,678.37,0.27066753]
[1738029051406,0.24432436,679.6,678.37,0.27066753]
[1738029051608,0.24432436,679.62,678.37,0.27066753]
[1738029052009,1.10126886,679.63,678.36,0.2948287]
[1738029052309,0.24433861,679.62,678.37,0.27065807]
[1738029052507,0.24433861,679.62,678.38,0.29482001]
[1738029052706,0.24433861,679.62,678.39,0.27065807]
[1738029053010,0.24433861,679.61,678.4,0.29481132]
[1738029053211,0.24433861,679.6,678.41,0.27065807]
[1738029053411,0.24433861,679.7,678.42,0.29480262]
[1738029053709,0.24433861,679.69,678.42,0.29480262]
[1738029054008,1.10126886,679.71,678.42,0.29480262]
[1738029054209,0.24434447,679.7,678.42,0.29480262]
[1738029056410,0.24434447,679.69,678.42,0.29480262]
[1738029056611,1.10126886,679.81,678.42,0.29480262]
[1738029056612,0.24434447,679.8,678.42,0.29480262]
[1738029056911,0.24434447,679.79,678.42,0.29480262]
[1738029057309,0.24434447,679.78,678.42,0.29480262]
[1738029057509,0.24434447,679.8,678.42,0.29480262]
[1738029057709,0.24434447,679.77,678.42,0.29480262]
[1738029057906,0.24434447,679.76,678.42,0.29480262]
[1738029058111,0.24434447,679.75,678.42,0.29480262]
[1738029058412,0.24434447,679.74,678.42,0.29480262]
[1738029058609,0.24434447,679.8,678.42,0.29480262]
[1738029059113,1.34561333,679.8,678.42,0.29480262]
[1738029059315,0.24434447,679.79,678.42,0.29480262]
[1738029059614,1.10126886,679.8,678.42,0.29480262]
[1738029059913,0.24435525,679.79,678.42,0.29480262]
[1738029061912,0.24435525,679.83,678.42,0.29480262]
[1738029064614,1.10126886,679.82,678.42,0.29480262]
[1738029064817,0.24435525,679.81,678.42,0.29480262]
[1738029067118,0.29420417,679.8,678.42,0.29480262]
[1738029067315,0.24435525,679.79,678.42,0.29480262]
[1738029067515,1.10126886,679.73,678.42,0.29480262]
[1738029067821,0.244388,679.72,678.42,0.29480262]
[1738029068213,0.24438338,679.71,678.42,0.29480262]
[1738029068420,0.24438338,679.72,678.42,0.29480262]
[1738029068722,0.24438338,679.71,678.42,0.29480262]
[1738029069119,0.24438338,679.7,678.42,0.29480262]
[1738029069316,0.24438338,679.72,678.42,0.29480262]
[1738029070023,0.53862218,679.72,678.42,0.29480262]
[1738029070221,0.24434764,679.71,678.42,0.29480262]
[1738029070426,1.10126886,679.48,678.42,0.29480262]
[1738029070621,0.24434764,679.47,678.42,0.29480262]
[1738029071922,0.24426632,679.46,678.42,0.29480262]
[1738029072119,0.24426632,679.45,678.42,0.29480262]
[1738029072328,0.24426632,679.47,678.42,0.29480262]
[1738029072626,0.24426632,679.46,678.42,0.29480262]
[1738029073027,0.24426632,679.45,678.42,0.29480262]
[1738029073222,0.24426632,679.46,678.42,0.29480262]
[1738029075524,1.10126886,679.47,678.42,0.29480262]
[1738029075732,0.24427559,679.46,678.42,0.29480262]
[1738029076030,1.10126886,679.39,678.42,0.29480262]
[1738029076231,0.24427559,679.38,678.42,0.29480262]
[1738029077324,1.10126886,679.39,678.42,0.29480262]
[1738029077529,0.24426441,679.38,678.42,0.29480262]
[1738029078836,1.10126886,679.3,678.42,0.29480262]
[1738029079231,0.24426441,679.29,678.42,0.29480262]
[1738029081931,0.24426441,679.28,678.42,0.29480262]
[1738029082230,0.24426441,679.27,678.42,0.29480262]
[1738029082429,0.24426441,679.34,678.42,0.29480262]
[1738029082629,0.24426441,679.33,678.42,0.29480262]
[1738029083031,0.24426441,679.32,678.42,0.29480262]
[1738029083229,0.24426441,679.31,678.42,0.29480262]
[1738029083433,0.24426441,679.3,678.42,0.29480262]
[1738029083732,0.24426441,679.29,678.42,0.29480262]
[1738029083933,0.24426441,679.28,678.42,0.29480262]
[1738029084134,1.10126886,679.35,678.42,0.29480262]
[1738029084135,0.24426441,679.27,678.42,0.29480262]
[1738029084337,1.10126886,679.35,678.42,0.29480262]
[1738029084834,1.10126886,679.38,678.42,0.29480262]
[1738029087331,0.24427864,679.37,678.42,0.29480262]
[1738029087732,0.24427864,679.56,678.42,0.29480262]
[1738029087932,0.24427864,679.55,678.42,0.29480262]
[1738029088133,0.24427864,679.54,678.42,0.29480262]
[1738029088331,0.24428102,679.53,678.42,0.29480262]
[1738029088635,0.24428102,679.52,678.42,0.29480262]
[1738029088835,0.24428102,679.51,677.78,1.10472257]
[1738029089035,0.24428102,679.54,677.79,0.27080451]
[1738029089230,0.24428102,679.53,677.79,0.27080451]
[1738029089434,0.24428102,679.54,677.79,0.27080451]
[1738029089630,0.24428102,679.53,677.79,0.27080451]
[1738029089837,0.24428102,679.52,677.8,1.53813854]
[1738029090033,0.24428102,679.54,677.81,0.27080451]
[1738029090338,0.24428102,679.53,677.81,0.27080451]
[1738029090541,0.24428102,679.54,677.81,0.27080451]
[1738029090838,0.24428102,679.53,677.81,0.27080451]
[1738029091038,1.53805357,679.55,677.81,0.27080451]
[1738029091039,0.24428102,679.54,677.81,0.27080451]
[1738029091240,0.24428102,679.53,677.81,0.27080451]
[1738029091537,0.24428102,679.52,677.81,0.27080451]
[1738029091735,0.24428102,679.51,677.81,0.27080451]
[1738029091932,1.53805357,679.55,677.81,0.27080451]
[1738029091933,1.10126886,679.42,677.81,0.27080451]
[1738029092136,0.24428102,679.41,677.81,0.27080451]
[1738029098543,1.10126886,679.31,677.81,0.27080451]
[1738029098740,0.24428102,679.3,677.81,0.27080451]
[1738029101043,1.10126886,679.31,677.8,2.64286111]
[1738029101343,1.10126886,679.23,677.92,1.10472257]
[1738029101538,0.24419051,679.22,677.93,0.27080474]
[1738029101742,0.24419373,679.21,677.94,0.27081069]
[1738029101944,0.24419373,679.22,677.93,0.27081069]
[1738029102139,0.24419373,679.21,677.94,0.27081069]
[1738029102336,0.24419373,679.22,677.93,0.27081069]
[1738029104043,1.10126886,679.18,677.95,1.10472257]
[1738029104343,0.24419373,679.17,677.96,0.27081069]
[1738029107344,1.10126886,679.16,677.98,1.10472257]
[1738029107546,0.24419373,679.15,677.99,0.27081069]
[1738029108746,1.10126886,679.16,677.99,0.27081069]
[1738029109348,0.24437027,679.15,677.99,0.27081069]
[1738029109547,1.10126886,679.13,678.0,1.10472257]
[1738029109745,1.10126886,679.13,678.01,0.27081069]
[1738029110346,1.10126886,679.13,678.02,0.27078163]
[1738029110546,1.10126886,679.13,678.03,0.27078163]
[1738029110747,1.10126886,679.13,678.04,0.27078163]
[1738029110947,1.10126886,679.13,678.05,0.27078163]
[1738029111149,1.10126886,679.13,678.01,0.27078163]
[1738029111349,1.10126886,679.13,678.02,0.27078163]
[1738029111549,1.10126886,679.13,678.03,0.27078163]
[1738029111743,1.10126886,679.13,678.04,0.27078163]
[1738029111948,1.10126886,679.13,678.0,1.10472257]
[1738029112651,1.10126886,679.13,677.93,1.53811022]
[1738029112652,1.10126886,679.2,678.08,1.10472257]
[1738029115853,1.10126886,679.37,677.94,1.10472257]
[1738029116048,1.10126886,679.37,677.95,0.27077673]
[1738029117450,1.10126886,679.37,677.94,1.10472257]
[1738029119255,1.10126886,679.36,677.95,1.10472257]
[1738029121857,1.10126886,679.36,677.96,0.27077336]
[1738029122156,1.10126886,679.36,677.98,0.29499395]
[1738029123258,1.10126886,679.42,677.98,0.29499395]
[1738029123557,0.24442411,679.41,677.98,0.29499395]
[1738029125558,0.24442411,679.41,677.99,0.27080104]
[1738029125754,0.24442411,679.41,678.0,0.29498525]
[1738029125953,0.24442411,679.41,678.01,0.27080104]
[1738029126358,1.10126886,679.42,678.0,0.29498525]
[1738029126657,1.10126886,679.28,678.01,0.27080438]
[1738029126861,1.10126886,679.28,678.02,0.29497654]
[1738029126862,0.24441929,679.27,678.02,0.29497654]
[1738029127656,1.10126886,679.28,678.02,0.29497654]
[1738029130155,1.10126886,679.2,678.02,0.29497654]
[1738029132357,1.10126886,679.27,678.02,0.29497654]
[1738029133860,0.2443204,679.26,678.03,0.27080763]
[1738029134163,0.2443204,679.26,678.04,0.29496784]
[1738029134364,0.2443204,679.26,678.05,0.27080763]
[1738029134663,1.34558926,679.26,678.06,0.29495914]
[1738029134863,0.2443204,679.25,678.06,0.29495914]
[1738029135560,1.10126886,679.26,678.06,0.29495914]
[1738029137557,0.24428456,679.25,678.06,0.29495914]
[1738029137764,0.24428456,679.25,678.07,0.27081029]
[1738029137963,0.24428456,679.25,678.08,0.29495044]
[1738029138161,0.24428456,679.25,678.09,0.27081029]
[1738029138363,1.10126886,679.13,678.1,0.29494174]
[1738029138565,0.24428456,679.12,678.11,0.27081029]
[1738029138764,0.24428456,679.12,678.12,0.29493305]
[1738029138963,0.24428456,679.12,678.13,0.27081029]
[1738029139166,0.24428456,679.12,678.13,0.56573899]
[1738029139366,0.24428456,679.12,678.13,0.2949287]
[1738029140267,0.24430187,679.11,678.14,0.27080709]
[1738029140564,0.24430187,679.1,678.14,0.27080709]
[1738029140766,0.24430187,679.12,678.14,0.27080709]
[1738029141064,1.10126886,679.13,678.13,0.2949287]
[1738029141260,1.10126886,679.07,678.14,0.27080835]
[1738029142862,1.10126886,679.07,678.14,0.5657327]
[1738029143066,1.10126886,679.07,678.15,0.27080835]
[1738029144571,1.10126886,679.08,678.15,0.27080835]
[1738029147171,2.25233189,679.76,678.15,0.27080835]
[1738029147172,1.10126886,679.1,678.15,0.27080835]
[1738029150072,1.10126886,679.2,678.15,0.27080835]
[1738029150267,1.10126886,679.2,678.16,0.29491565]
[1738029150465,1.10126886,679.2,678.17,0.27080835]
[1738029151271,1.10126886,679.2,678.18,0.29490695]
[1738029151471,1.10126886,679.2,678.19,0.27080835]
[1738029151672,1.10126886,679.2,678.2,0.29489826]
[1738029151873,1.10126886,679.2,678.21,0.27080835]
[1738029152374,1.10126886,679.2,678.2,0.29489826]